[Event "Titled Tuesday Blitz November 29 Late 2022"]
[White "O`Gorman, Tom"]
[Black "Girel, Joseph"]
[WhiteFideId "2508249"]
[BlackFideId "36033561"]
[WhiteElo "2271"]
[BlackElo "2281"]
[Result "1-0"]
[Round "06"]
[TimeControl "180+1"]
[Date "2022.11.30"]
[WhiteClock "0:00:12"]
[BlackClock "0:00:02"]

1. d4 {[%clk 0:03:00]}  Nf6 {[%clk 0:02:58]} 2. c4 {[%clk 0:03:00]}  g6 {[%clk 0:02:57]} 3. Nf3 {[%clk 0:03:01]}  b6 {[%clk 0:02:55]} 4. g3 {[%clk 0:02:59]}  Bb7 {[%clk 0:02:56]} 5. Bg2 {[%clk 0:02:59]}  Bg7 {[%clk 0:02:56]} 6. O-O {[%clk 0:03:00]}  O-O {[%clk 0:02:56]} 7. Nc3 {[%clk 0:03:00]}  Ne4 {[%clk 0:02:57]} 8. Qc2 {[%clk 0:02:58]}  Nxc3 {[%clk 0:02:54]} 9. Qxc3 {[%clk 0:02:59]}  c5 {[%clk 0:02:54]} 10. Be3 {[%clk 0:02:57]}  d6 {[%clk 0:02:54]} 11. Qd2 {[%clk 0:02:57]}  Nd7 {[%clk 0:02:53]} 12. Bh6 {[%clk 0:02:56]}  cxd4 {[%clk 0:02:48]} 13. Bxg7 {[%clk 0:02:55]}  Kxg7 {[%clk 0:02:49]} 14. Qxd4+ {[%clk 0:02:54]}  Nf6 {[%clk 0:02:49]} 15. Rfd1 {[%clk 0:02:54]}  Rc8 {[%clk 0:02:47]} 16. Rac1 {[%clk 0:02:53]}  Qc7 {[%clk 0:02:47]} 17. b3 {[%clk 0:02:52]}  Qc5 {[%clk 0:02:44]} 18. h3 {[%clk 0:02:39]}  a6 {[%clk 0:02:37]} 19. Qb2 {[%clk 0:02:32]}  b5 {[%clk 0:02:34]} 20. b4 {[%clk 0:02:21]}  Qb6 {[%clk 0:02:32]} 21. cxb5 {[%clk 0:02:10]}  axb5 {[%clk 0:02:30]} 22. Qd4 {[%clk 0:02:08]}  Qa6 {[%clk 0:02:25]} 23. Rxc8 {[%clk 0:02:02]}  Rxc8 {[%clk 0:02:25]} 24. Rd2 {[%clk 0:02:03]}  Rc4 {[%clk 0:02:22]} 25. Qb2 {[%clk 0:02:00]}  e5 {[%clk 0:02:01]} 26. Rc2 {[%clk 0:01:45]}  Qc6 {[%clk 0:01:56]} 27. Rxc4 {[%clk 0:01:37]}  Qxc4 {[%clk 0:01:57]} 28. Nd2 {[%clk 0:01:35]}  Qc7 {[%clk 0:01:54]} 29. Bxb7 {[%clk 0:01:35]}  Qxb7 {[%clk 0:01:55]} 30. Qc3 {[%clk 0:01:35]}  Qd5 {[%clk 0:01:54]} 31. a3 {[%clk 0:01:32]}  h5 {[%clk 0:01:54]} 32. e3 {[%clk 0:01:29]}  Qa2 {[%clk 0:01:52]} 33. Kg2 {[%clk 0:01:28]}  Qd5+ {[%clk 0:01:43]} 34. Kg1 {[%clk 0:01:27]}  h4 {[%clk 0:01:42]} 35. g4 {[%clk 0:01:27]}  Nh7 {[%clk 0:01:41]} 36. e4 {[%clk 0:01:18]}  Qa2 {[%clk 0:01:37]} 37. Nf3 {[%clk 0:01:15]}  Nf6 {[%clk 0:01:35]} 38. Qd3 {[%clk 0:01:14]}  Qc4 {[%clk 0:01:33]} 39. Qxc4 {[%clk 0:01:03]}  bxc4 {[%clk 0:01:33]} 40. a4 {[%clk 0:01:04]}  c3 {[%clk 0:01:28]} 41. Ne1 {[%clk 0:01:03]}  Nxe4 {[%clk 0:01:28]} 42. a5 {[%clk 0:01:03]}  Nf6 {[%clk 0:01:23]} 43. b5 {[%clk 0:01:00]}  Nd5 {[%clk 0:01:18]} 44. Kf1 {[%clk 0:00:56]}  Kf6 {[%clk 0:01:14]} 45. b6 {[%clk 0:00:52]}  Nb4 {[%clk 0:01:12]} 46. Ke2 {[%clk 0:00:43]}  Ke6 {[%clk 0:01:09]} 47. Nc2 {[%clk 0:00:39]}  Nxc2 {[%clk 0:01:07]} 48. a6 {[%clk 0:00:36]}  Nd4+ {[%clk 0:00:17]} 49. Kd3 {[%clk 0:00:36]}  c2 {[%clk 0:00:14]} 50. Kd2 {[%clk 0:00:36]}  Kd7 {[%clk 0:00:04]} 51. a7 {[%clk 0:00:36]}  Kc6 {[%clk 0:00:05]} 52. a8=Q+ {[%clk 0:00:36]}  Kxb6 {[%clk 0:00:06]} 53. Qf8 {[%clk 0:00:30]}  Kc5 {[%clk 0:00:03]} 54. Qxf7 {[%clk 0:00:28]}  Kb4 {[%clk 0:00:04]} 55. Qb7+ {[%clk 0:00:28]}  Ka3 {[%clk 0:00:03]} 56. Kc1 {[%clk 0:00:20]}  Ka4 {[%clk 0:00:04]} 57. Qb6 {[%clk 0:00:19]}  Ka3 {[%clk 0:00:04]} 58. Qxd6+ {[%clk 0:00:18]}  Kb3 {[%clk 0:00:04]} 59. Qb6+ {[%clk 0:00:19]}  Kc3 {[%clk 0:00:04]} 60. Qa5+ {[%clk 0:00:17]}  Kd3 {[%clk 0:00:04]} 61. Kb2 {[%clk 0:00:15]}  Ne2 {[%clk 0:00:01]} 62. Qd5+ {[%clk 0:00:13]}  Nd4 {[%clk 0:00:02]} 63. Qxe5 {[%clk 0:00:12]} 1-0


[Site "https://www.chess.com"]

[Event "Titled Tuesday Blitz November 29 Late 2022"]
[White "Olafsson, Helgi"]
[Black "Yeritsyan, Hayk"]
[WhiteFideId "2300010"]
[BlackFideId "13307320"]
[WhiteElo "2463"]
[BlackElo "2439"]
[Result "1/2-1/2"]
[Round "06"]
[TimeControl "180+1"]
[Date "2022.11.30"]
[WhiteClock "0:00:07"]
[BlackClock "0:00:47"]

1. Nf3 {[%clk 0:02:57]}  d5 {[%clk 0:02:59]} 2. d4 {[%clk 0:02:56]}  Nf6 {[%clk 0:02:59]} 3. c4 {[%clk 0:02:56]}  c6 {[%clk 0:02:58]} 4. e3 {[%clk 0:02:56]}  e6 {[%clk 0:02:58]} 5. Nc3 {[%clk 0:02:55]}  Bd6 {[%clk 0:02:58]} 6. Qc2 {[%clk 0:02:55]}  Nbd7 {[%clk 0:02:59]} 7. Be2 {[%clk 0:02:54]}  Qe7 {[%clk 0:02:59]} 8. O-O {[%clk 0:02:54]}  dxc4 {[%clk 0:02:56]} 9. a4 {[%clk 0:02:53]}  O-O {[%clk 0:02:56]} 10. Bxc4 {[%clk 0:02:53]}  e5 {[%clk 0:02:56]} 11. h3 {[%clk 0:02:50]}  Re8 {[%clk 0:02:52]} 12. Ng5 {[%clk 0:02:45]}  Rf8 {[%clk 0:02:45]} 13. Bb3 {[%clk 0:02:23]}  h6 {[%clk 0:02:34]} 14. Nge4 {[%clk 0:02:21]}  exd4 {[%clk 0:02:30]} 15. exd4 {[%clk 0:02:19]}  Nxe4 {[%clk 0:02:28]} 16. Nxe4 {[%clk 0:02:19]}  Nf6 {[%clk 0:02:27]} 17. Nc3 {[%clk 0:01:59]}  Bc7 {[%clk 0:02:21]} 18. Ne2 {[%clk 0:01:17]}  Be6 {[%clk 0:02:00]} 19. Bxe6 {[%clk 0:01:12]}  Qxe6 {[%clk 0:01:59]} 20. Ra3 {[%clk 0:01:11]}  Rfe8 {[%clk 0:01:55]} 21. Re3 {[%clk 0:01:09]}  Qd6 {[%clk 0:01:53]} 22. Rxe8+ {[%clk 0:01:00]}  Rxe8 {[%clk 0:01:52]} 23. Bf4 {[%clk 0:01:01]}  Rxe2 {[%clk 0:01:42]} 24. Bxd6 {[%clk 0:00:49]}  Rxc2 {[%clk 0:01:42]} 25. Bxc7 {[%clk 0:00:49]}  Rxb2 {[%clk 0:01:42]} 26. Re1 {[%clk 0:00:50]}  Nd5 {[%clk 0:01:37]} 27. Re8+ {[%clk 0:00:47]}  Kh7 {[%clk 0:01:36]} 28. Bb8 {[%clk 0:00:45]}  a6 {[%clk 0:01:28]} 29. Rd8 {[%clk 0:00:45]}  b5 {[%clk 0:01:25]} 30. axb5 {[%clk 0:00:34]}  axb5 {[%clk 0:01:25]} 31. Rc8 {[%clk 0:00:27]}  Rc2 {[%clk 0:01:20]} 32. Bd6 {[%clk 0:00:27]}  b4 {[%clk 0:01:18]} 33. Rb8 {[%clk 0:00:27]}  Rb2 {[%clk 0:01:15]} 34. Rc8 {[%clk 0:00:22]}  Rb1+ {[%clk 0:01:06]} 35. Kh2 {[%clk 0:00:19]}  b3 {[%clk 0:01:00]} 36. Rxc6 {[%clk 0:00:17]}  b2 {[%clk 0:01:01]} 37. Ba3 {[%clk 0:00:17]}  Rc1 {[%clk 0:01:00]} 38. Rxc1 {[%clk 0:00:16]}  bxc1=Q {[%clk 0:00:56]} 39. Bxc1 {[%clk 0:00:15]}  Kg6 {[%clk 0:00:56]} 40. Kg3 {[%clk 0:00:15]}  Kf5 {[%clk 0:00:57]} 41. Kf3 {[%clk 0:00:15]}  h5 {[%clk 0:00:56]} 42. g4+ {[%clk 0:00:14]}  hxg4+ {[%clk 0:00:57]} 43. hxg4+ {[%clk 0:00:14]}  Ke6 {[%clk 0:00:58]} 44. Bd2 {[%clk 0:00:12]}  g6 {[%clk 0:00:56]} 45. Ke4 {[%clk 0:00:10]}  Nc7 {[%clk 0:00:47]} 46. Ba5 {[%clk 0:00:07]}  Nd5 {[%clk 0:00:47]} 47. Bd2 {[%clk 0:00:07]}  Nc7 {[%clk 0:00:47]} 48. Ba5 {[%clk 0:00:07]}  Nd5 {[%clk 0:00:47]} 49. Bd2 {[%clk 0:00:07]} 1/2-1/2


[Site "https://www.chess.com"]

[Event "Titled Tuesday Blitz November 29 Late 2022"]
[White "Perez Rodriguez, Jennifer"]
[Black "Pace, Christopher"]
[WhiteFideId "3507831"]
[BlackFideId "2610167"]
[WhiteElo "2170"]
[BlackElo "2314"]
[Result "0-1"]
[Round "06"]
[TimeControl "180+1"]
[Date "2022.11.30"]
[WhiteClock "0:00:12"]
[BlackClock "0:00:18"]

1. e4 {[%clk 0:03:00]}  e5 {[%clk 0:02:59]} 2. Nf3 {[%clk 0:03:00]}  Nc6 {[%clk 0:02:58]} 3. Bc4 {[%clk 0:03:00]}  Nf6 {[%clk 0:02:58]} 4. d3 {[%clk 0:02:58]}  Bc5 {[%clk 0:02:56]} 5. c3 {[%clk 0:02:57]}  d6 {[%clk 0:02:55]} 6. O-O {[%clk 0:02:56]}  O-O {[%clk 0:02:55]} 7. a4 {[%clk 0:02:55]}  a5 {[%clk 0:02:53]} 8. Be3 {[%clk 0:02:54]}  Bxe3 {[%clk 0:02:13]} 9. fxe3 {[%clk 0:02:44]}  Be6 {[%clk 0:02:11]} 10. Nbd2 {[%clk 0:02:37]}  Re8 {[%clk 0:01:50]} 11. Bb5 {[%clk 0:02:30]}  Bd7 {[%clk 0:01:27]} 12. Qc2 {[%clk 0:02:30]}  Ne7 {[%clk 0:01:16]} 13. Nh4 {[%clk 0:02:23]}  c6 {[%clk 0:01:12]} 14. Bc4 {[%clk 0:02:22]}  d5 {[%clk 0:01:12]} 15. exd5 {[%clk 0:02:18]}  cxd5 {[%clk 0:01:12]} 16. Bb3 {[%clk 0:02:08]}  Qb6 {[%clk 0:00:59]} 17. Rae1 {[%clk 0:02:03]}  Ng4 {[%clk 0:00:31]} 18. d4 {[%clk 0:01:56]}  Qh6 {[%clk 0:00:31]} 19. Nhf3 {[%clk 0:01:31]}  e4 {[%clk 0:00:31]} 20. Nxe4 {[%clk 0:01:30]}  dxe4 {[%clk 0:00:31]} 21. Qxe4 {[%clk 0:01:31]}  Ng6 {[%clk 0:00:24]} 22. Qxb7 {[%clk 0:01:02]}  Be6 {[%clk 0:00:13]} 23. Bxe6 {[%clk 0:01:00]}  fxe6 {[%clk 0:00:14]} 24. Qe4 {[%clk 0:00:56]}  Nf6 {[%clk 0:00:15]} 25. Qd3 {[%clk 0:00:56]}  e5 {[%clk 0:00:15]} 26. dxe5 {[%clk 0:00:45]}  Nxe5 {[%clk 0:00:16]} 27. Qf5 {[%clk 0:00:40]}  Nxf3+ {[%clk 0:00:13]} 28. Rxf3 {[%clk 0:00:39]}  Rab8 {[%clk 0:00:13]} 29. Rf2 {[%clk 0:00:33]}  Rxe3 {[%clk 0:00:11]} 30. Rd1 {[%clk 0:00:27]}  Ree8 {[%clk 0:00:10]} 31. Rfd2 {[%clk 0:00:25]}  Qe3+ {[%clk 0:00:11]} 32. Qf2 {[%clk 0:00:23]}  Qxf2+ {[%clk 0:00:11]} 33. Rxf2 {[%clk 0:00:24]}  Ne4 {[%clk 0:00:10]} 34. Re2 {[%clk 0:00:22]}  Nc5 {[%clk 0:00:09]} 35. Rxe8+ {[%clk 0:00:21]}  Rxe8 {[%clk 0:00:09]} 36. Rd5 {[%clk 0:00:20]}  Nxa4 {[%clk 0:00:09]} 37. Rxa5 {[%clk 0:00:20]}  Nxb2 {[%clk 0:00:10]} 38. Rb5 {[%clk 0:00:20]}  Nd1 {[%clk 0:00:10]} 39. g3 {[%clk 0:00:17]}  Nxc3 {[%clk 0:00:09]} 40. Rc5 {[%clk 0:00:18]}  Ne2+ {[%clk 0:00:10]} 41. Kf2 {[%clk 0:00:18]}  Nd4 {[%clk 0:00:11]} 42. Rd5 {[%clk 0:00:18]}  Ne6 {[%clk 0:00:12]} 43. Re5 {[%clk 0:00:18]}  Rf8+ {[%clk 0:00:12]} 44. Ke3 {[%clk 0:00:18]}  Nc7 {[%clk 0:00:13]} 45. Ke4 {[%clk 0:00:17]}  Re8 {[%clk 0:00:13]} 46. Rxe8+ {[%clk 0:00:16]}  Nxe8 {[%clk 0:00:13]} 47. Ke5 {[%clk 0:00:17]}  Kf7 {[%clk 0:00:14]} 48. g4 {[%clk 0:00:17]}  Kg6 {[%clk 0:00:14]} 49. h4 {[%clk 0:00:17]}  h5 {[%clk 0:00:15]} 50. g5 {[%clk 0:00:15]}  Nc7 {[%clk 0:00:15]} 51. Kd6 {[%clk 0:00:16]}  Nb5+ {[%clk 0:00:15]} 52. Ke6 {[%clk 0:00:16]}  Nc3 {[%clk 0:00:16]} 53. Ke7 {[%clk 0:00:15]}  Nd1 {[%clk 0:00:16]} 54. Ke6 {[%clk 0:00:10]}  Ne3 {[%clk 0:00:17]} 55. Ke5 {[%clk 0:00:11]}  Ng2 {[%clk 0:00:18]} 56. Ke4 {[%clk 0:00:11]}  Nxh4 {[%clk 0:00:18]} 57. Kf4 {[%clk 0:00:12]}  Nf5 {[%clk 0:00:18]} 0-1


[Site "https://www.chess.com"]

[Event "Titled Tuesday Blitz November 29 Late 2022"]
[White "Perez Torres, Nabi Isaias"]
[Black "Torres Dominguez, David"]
[WhiteFideId "5120373"]
[BlackFideId "2220857"]
[WhiteElo "1915"]
[BlackElo "2037"]
[Result "1-0"]
[Round "06"]
[TimeControl "180+1"]
[Date "2022.11.30"]
[WhiteClock "0:01:03"]
[BlackClock "0:00:17"]

1. d4 {[%clk 0:03:00]}  e5 {[%clk 0:01:13]} 2. e3 {[%clk 0:02:57]}  d6 {[%clk 0:01:13]} 3. c4 {[%clk 0:02:57]}  c6 {[%clk 0:01:13]} 4. Nc3 {[%clk 0:02:58]}  Nf6 {[%clk 0:01:11]} 5. d5 {[%clk 0:02:57]}  Qc7 {[%clk 0:01:11]} 6. e4 {[%clk 0:02:56]}  Be7 {[%clk 0:01:11]} 7. Be2 {[%clk 0:02:56]}  O-O {[%clk 0:01:12]} 8. g4 {[%clk 0:02:56]}  Na6 {[%clk 0:01:08]} 9. g5 {[%clk 0:02:55]}  Nd7 {[%clk 0:01:07]} 10. h4 {[%clk 0:02:54]}  Nac5 {[%clk 0:01:07]} 11. b4 {[%clk 0:02:36]}  Na6 {[%clk 0:01:07]} 12. a3 {[%clk 0:02:35]}  f6 {[%clk 0:01:03]} 13. Bg4 {[%clk 0:02:09]}  Nb6 {[%clk 0:00:58]} 14. Bxc8 {[%clk 0:02:04]}  Raxc8 {[%clk 0:00:56]} 15. Nge2 {[%clk 0:01:51]}  Qd7 {[%clk 0:00:55]} 16. Be3 {[%clk 0:01:45]}  Nc7 {[%clk 0:00:54]} 17. dxc6 {[%clk 0:01:40]}  bxc6 {[%clk 0:00:53]} 18. Qb3 {[%clk 0:01:35]}  Kh8 {[%clk 0:00:51]} 19. Rd1 {[%clk 0:01:28]}  Qe6 {[%clk 0:00:51]} 20. Bxb6 {[%clk 0:01:26]}  axb6 {[%clk 0:00:50]} 21. g6 {[%clk 0:01:24]}  h6 {[%clk 0:00:49]} 22. Ng3 {[%clk 0:01:22]}  b5 {[%clk 0:00:46]} 23. Nf5 {[%clk 0:01:19]}  Rfe8 {[%clk 0:00:38]} 24. Qc2 {[%clk 0:01:16]}  Qxc4 {[%clk 0:00:35]} 25. Qd2 {[%clk 0:01:16]}  d5 {[%clk 0:00:33]} 26. Nxh6 {[%clk 0:01:15]}  dxe4 {[%clk 0:00:22]} 27. Nf7+ {[%clk 0:01:15]}  Kg8 {[%clk 0:00:22]} 28. h5 {[%clk 0:01:05]}  Rcd8 {[%clk 0:00:22]} 29. Nxd8 {[%clk 0:01:02]}  Rxd8 {[%clk 0:00:22]} 30. Qxd8+ {[%clk 0:01:01]}  Bxd8 {[%clk 0:00:19]} 31. Rxd8+ {[%clk 0:01:02]}  Ne8 {[%clk 0:00:17]} 32. Rxe8# {[%clk 0:01:03]} 1-0


[Site "https://www.chess.com"]

[Event "Titled Tuesday Blitz November 29 Late 2022"]
[White "Pranav, V"]
[Black "Pap, Gyula"]
[WhiteFideId "25060783"]
[BlackFideId "725323"]
[WhiteElo "2430"]
[BlackElo "2519"]
[Result "0-1"]
[Round "06"]
[TimeControl "180+1"]
[Date "2022.11.30"]
[WhiteClock "0:00:02"]
[BlackClock "0:00:11"]

1. e4 {[%clk 0:03:00]}  e6 {[%clk 0:02:59]} 2. d3 {[%clk 0:03:00]}  c5 {[%clk 0:02:58]} 3. Nf3 {[%clk 0:02:57]}  Nc6 {[%clk 0:02:58]} 4. g3 {[%clk 0:02:56]}  g6 {[%clk 0:02:58]} 5. h4 {[%clk 0:02:56]}  h6 {[%clk 0:02:58]} 6. Bg2 {[%clk 0:02:56]}  Bg7 {[%clk 0:02:59]} 7. O-O {[%clk 0:02:56]}  Nge7 {[%clk 0:02:57]} 8. Re1 {[%clk 0:02:53]}  e5 {[%clk 0:02:57]} 9. Nc3 {[%clk 0:02:52]}  d6 {[%clk 0:02:57]} 10. Nd2 {[%clk 0:02:52]}  O-O {[%clk 0:02:54]} 11. h5 {[%clk 0:02:50]}  Be6 {[%clk 0:02:47]} 12. hxg6 {[%clk 0:02:48]}  fxg6 {[%clk 0:02:48]} 13. Nc4 {[%clk 0:02:48]}  Qd7 {[%clk 0:02:42]} 14. Ne3 {[%clk 0:02:31]}  Nd4 {[%clk 0:02:37]} 15. Ncd5 {[%clk 0:02:29]}  Nxd5 {[%clk 0:02:34]} 16. exd5 {[%clk 0:02:29]}  Bh3 {[%clk 0:02:34]} 17. c3 {[%clk 0:02:14]}  Bxg2 {[%clk 0:01:57]} 18. Kxg2 {[%clk 0:02:15]}  Nf3 {[%clk 0:01:51]} 19. Rh1 {[%clk 0:02:14]}  Rf7 {[%clk 0:01:44]} 20. Qe2 {[%clk 0:01:47]}  Raf8 {[%clk 0:01:44]} 21. a4 {[%clk 0:01:46]}  b6 {[%clk 0:01:42]} 22. Nc4 {[%clk 0:01:44]}  Qg4 {[%clk 0:01:11]} 23. Qe3 {[%clk 0:01:04]}  Ng5 {[%clk 0:00:57]} 24. Nd2 {[%clk 0:00:40]}  Rxf2+ {[%clk 0:00:49]} 25. Qxf2 {[%clk 0:00:41]}  Rxf2+ {[%clk 0:00:49]} 26. Kxf2 {[%clk 0:00:42]}  c4 {[%clk 0:00:37]} 27. dxc4 {[%clk 0:00:32]}  e4 {[%clk 0:00:35]} 28. Rh4 {[%clk 0:00:32]}  Qf5+ {[%clk 0:00:33]} 29. Ke2 {[%clk 0:00:28]}  Be5 {[%clk 0:00:29]} 30. a5 {[%clk 0:00:18]}  Bxg3 {[%clk 0:00:24]} 31. axb6 {[%clk 0:00:16]}  axb6 {[%clk 0:00:15]} 32. Ra8+ {[%clk 0:00:16]}  Kg7 {[%clk 0:00:13]} 33. Ra7+ {[%clk 0:00:16]}  Kf6 {[%clk 0:00:14]} 34. Rh1 {[%clk 0:00:04]}  Qg4+ {[%clk 0:00:13]} 35. Kf1 {[%clk 0:00:05]}  e3 {[%clk 0:00:12]} 36. Nb3 {[%clk 0:00:02]}  Qf3+ {[%clk 0:00:11]} 0-1


[Site "https://www.chess.com"]

[Event "Titled Tuesday Blitz November 29 Late 2022"]
[White "Preotu, Razvan"]
[Black "Khater, Sherif"]
[WhiteFideId "2613280"]
[BlackFideId "2034280"]
[WhiteElo "2407"]
[BlackElo "2528"]
[Result "1-0"]
[Round "06"]
[TimeControl "180+1"]
[Date "2022.11.30"]
[WhiteClock "0:00:04"]
[BlackClock "0:00:23"]

1. e4 {[%clk 0:03:00]}  e5 {[%clk 0:02:58]} 2. Nf3 {[%clk 0:03:00]}  Nf6 {[%clk 0:02:58]} 3. d4 {[%clk 0:02:57]}  Nxe4 {[%clk 0:02:55]} 4. Bd3 {[%clk 0:02:57]}  d5 {[%clk 0:02:55]} 5. Nxe5 {[%clk 0:02:57]}  Nd7 {[%clk 0:02:55]} 6. Nxd7 {[%clk 0:02:57]}  Bxd7 {[%clk 0:02:56]} 7. O-O {[%clk 0:02:57]}  Be7 {[%clk 0:02:56]} 8. Nc3 {[%clk 0:02:56]}  Nxc3 {[%clk 0:02:56]} 9. bxc3 {[%clk 0:02:57]}  Be6 {[%clk 0:02:55]} 10. f4 {[%clk 0:02:54]}  g6 {[%clk 0:02:54]} 11. Rb1 {[%clk 0:02:45]}  Qc8 {[%clk 0:02:53]} 12. f5 {[%clk 0:02:40]}  gxf5 {[%clk 0:02:52]} 13. Qh5 {[%clk 0:02:31]}  Qd7 {[%clk 0:02:30]} 14. Rxb7 {[%clk 0:02:29]}  O-O-O {[%clk 0:02:29]} 15. Ba6 {[%clk 0:02:24]}  Qa4 {[%clk 0:02:30]} 16. Qe2 {[%clk 0:02:15]}  Rd6 {[%clk 0:02:23]} 17. Rxa7+ {[%clk 0:01:40]}  Kb8 {[%clk 0:02:20]} 18. Rb7+ {[%clk 0:01:40]}  Ka8 {[%clk 0:01:59]} 19. Rxc7 {[%clk 0:01:39]}  Qxa6 {[%clk 0:01:51]} 20. Qxa6+ {[%clk 0:01:38]}  Rxa6 {[%clk 0:01:52]} 21. Rxe7 {[%clk 0:01:38]}  Rxa2 {[%clk 0:01:52]} 22. Bf4 {[%clk 0:01:37]}  Rc8 {[%clk 0:01:50]} 23. Rb1 {[%clk 0:01:31]}  Ra7 {[%clk 0:01:41]} 24. Rxa7+ {[%clk 0:01:26]}  Kxa7 {[%clk 0:01:42]} 25. Rb3 {[%clk 0:01:26]}  Rc6 {[%clk 0:01:35]} 26. Kf2 {[%clk 0:01:19]}  Ra6 {[%clk 0:01:36]} 27. Rb2 {[%clk 0:01:05]}  Ra3 {[%clk 0:01:33]} 28. Bd2 {[%clk 0:01:05]}  Ra1 {[%clk 0:01:28]} 29. Kg3 {[%clk 0:00:59]}  Rd1 {[%clk 0:01:25]} 30. Bf4 {[%clk 0:00:58]}  Re1 {[%clk 0:01:20]} 31. Kf2 {[%clk 0:00:46]}  Ra1 {[%clk 0:01:15]} 32. h4 {[%clk 0:00:43]}  Rd1 {[%clk 0:01:11]} 33. h5 {[%clk 0:00:43]}  Ra1 {[%clk 0:01:11]} 34. h6 {[%clk 0:00:43]}  Rd1 {[%clk 0:01:10]} 35. Kg3 {[%clk 0:00:38]}  Rf1 {[%clk 0:01:09]} 36. Be3 {[%clk 0:00:30]}  Re1 {[%clk 0:01:03]} 37. Kf4 {[%clk 0:00:30]}  Re2 {[%clk 0:01:00]} 38. g3 {[%clk 0:00:30]}  Ka8 {[%clk 0:00:58]} 39. Rb6 {[%clk 0:00:23]}  Rxc2 {[%clk 0:00:56]} 40. Rd6 {[%clk 0:00:23]}  Rxc3 {[%clk 0:00:56]} 41. Rd8+ {[%clk 0:00:23]}  Kb7 {[%clk 0:00:56]} 42. Rh8 {[%clk 0:00:23]}  Rc8 {[%clk 0:00:46]} 43. Rxh7 {[%clk 0:00:18]}  Rg8 {[%clk 0:00:45]} 44. Rg7 {[%clk 0:00:18]}  Rxg7 {[%clk 0:00:44]} 45. hxg7 {[%clk 0:00:18]}  f6 {[%clk 0:00:45]} 46. g8=Q {[%clk 0:00:03]}  Bxg8 {[%clk 0:00:44]} 47. Kxf5 {[%clk 0:00:04]}  Kc6 {[%clk 0:00:37]} 48. Kxf6 {[%clk 0:00:05]}  Kd7 {[%clk 0:00:35]} 49. g4 {[%clk 0:00:05]}  Bh7 {[%clk 0:00:35]} 50. Bh6 {[%clk 0:00:03]}  Ke8 {[%clk 0:00:35]} 51. g5 {[%clk 0:00:04]}  Bg8 {[%clk 0:00:26]} 52. g6 {[%clk 0:00:03]}  Kd7 {[%clk 0:00:24]} 53. Kg7 {[%clk 0:00:03]}  Be6 {[%clk 0:00:24]} 54. Kf8 {[%clk 0:00:04]}  Kc6 {[%clk 0:00:21]} 55. g7 {[%clk 0:00:04]}  Kb5 {[%clk 0:00:22]} 56. Bf4 {[%clk 0:00:04]}  Bg8 {[%clk 0:00:23]} 57. Be5 {[%clk 0:00:05]}  Be6 {[%clk 0:00:23]} 58. g8=Q {[%clk 0:00:04]} 1-0


[Site "https://www.chess.com"]

[Event "Titled Tuesday Blitz November 29 Late 2022"]
[White "Putnam, Liam"]
[Black "Salman, Pavel"]
[WhiteFideId "30938279"]
[BlackFideId "24153753"]
[WhiteElo "2082"]
[BlackElo "2187"]
[Result "1-0"]
[Round "06"]
[TimeControl "180+1"]
[Date "2022.11.30"]
[WhiteClock "0:00:09"]
[BlackClock "0:00:04"]

1. e4 {[%clk 0:03:00]}  c5 {[%clk 0:03:00]} 2. Nc3 {[%clk 0:03:00]}  e6 {[%clk 0:03:00]} 3. f4 {[%clk 0:02:54]}  a6 {[%clk 0:02:59]} 4. Nf3 {[%clk 0:02:53]}  Qc7 {[%clk 0:02:59]} 5. d4 {[%clk 0:02:52]}  cxd4 {[%clk 0:02:59]} 6. Nxd4 {[%clk 0:02:53]}  Nc6 {[%clk 0:02:54]} 7. Be3 {[%clk 0:02:50]}  Bb4 {[%clk 0:02:53]} 8. a3 {[%clk 0:02:41]}  Bxc3+ {[%clk 0:02:53]} 9. bxc3 {[%clk 0:02:42]}  Nf6 {[%clk 0:02:53]} 10. Bd3 {[%clk 0:02:38]}  d5 {[%clk 0:02:47]} 11. e5 {[%clk 0:02:25]}  Ne4 {[%clk 0:02:47]} 12. O-O {[%clk 0:02:05]}  Nxc3 {[%clk 0:02:35]} 13. Qh5 {[%clk 0:02:05]}  g6 {[%clk 0:02:26]} 14. Qh6 {[%clk 0:01:59]}  Bd7 {[%clk 0:02:17]} 15. Qg7 {[%clk 0:01:52]}  O-O-O {[%clk 0:01:59]} 16. Nxc6 {[%clk 0:01:34]}  Bxc6 {[%clk 0:01:55]} 17. Bc5 {[%clk 0:01:26]}  d4 {[%clk 0:01:36]} 18. Bd6 {[%clk 0:01:19]}  Qd7 {[%clk 0:01:24]} 19. Qf6 {[%clk 0:01:08]}  Nd5 {[%clk 0:01:19]} 20. Qh4 {[%clk 0:01:07]}  Ne3 {[%clk 0:01:20]} 21. Rfb1 {[%clk 0:00:59]}  Nxg2 {[%clk 0:01:16]} 22. Qf2 {[%clk 0:00:55]}  Ne3 {[%clk 0:00:53]} 23. Bxa6 {[%clk 0:00:55]}  g5 {[%clk 0:00:49]} 24. fxg5 {[%clk 0:00:25]}  Rhg8 {[%clk 0:00:48]} 25. h4 {[%clk 0:00:25]}  h6 {[%clk 0:00:47]} 26. Rxb7 {[%clk 0:00:24]}  Bxb7 {[%clk 0:00:45]} 27. Rb1 {[%clk 0:00:25]}  hxg5 {[%clk 0:00:41]} 28. h5 {[%clk 0:00:20]}  Nf5 {[%clk 0:00:18]} 29. Qf3 {[%clk 0:00:16]}  Nxd6 {[%clk 0:00:16]} 30. exd6 {[%clk 0:00:16]}  g4 {[%clk 0:00:10]} 31. Qg2 {[%clk 0:00:10]}  d3 {[%clk 0:00:05]} 32. Bxb7+ {[%clk 0:00:09]}  Kb8 {[%clk 0:00:05]} 33. Bc6+ {[%clk 0:00:10]}  Ka7 {[%clk 0:00:05]} 34. Qf2+ {[%clk 0:00:09]}  Ka6 {[%clk 0:00:04]} 35. Qb6# {[%clk 0:00:09]} 1-0


[Site "https://www.chess.com"]

[Event "Titled Tuesday Blitz November 29 Late 2022"]
[White "Qashashvili, Alexandre"]
[Black "Gonzalez, Francisco Silva"]
[WhiteFideId "13600842"]
[BlackFideId "1512285"]
[WhiteElo "2405"]
[BlackElo "2159"]
[Result "0-1"]
[Round "06"]
[TimeControl "180+1"]
[Date "2022.11.30"]
[WhiteClock "0:02:12"]
[BlackClock "0:02:03"]

1. e4 {[%clk 0:03:00]}  e5 {[%clk 0:02:59]} 2. Nc3 {[%clk 0:03:01]}  Nf6 {[%clk 0:02:57]} 3. Nf3 {[%clk 0:03:02]}  Nc6 {[%clk 0:02:53]} 4. d4 {[%clk 0:03:02]}  Bb4 {[%clk 0:02:53]} 5. d5 {[%clk 0:03:00]}  Ne7 {[%clk 0:02:52]} 6. Bd3 {[%clk 0:02:58]}  Ng6 {[%clk 0:02:51]} 7. Bg5 {[%clk 0:02:55]}  h6 {[%clk 0:02:50]} 8. Bxf6 {[%clk 0:02:54]}  Qxf6 {[%clk 0:02:49]} 9. h3 {[%clk 0:02:54]}  a6 {[%clk 0:02:48]} 10. Qd2 {[%clk 0:02:50]}  d6 {[%clk 0:02:47]} 11. a3 {[%clk 0:02:49]}  Ba5 {[%clk 0:02:45]} 12. b4 {[%clk 0:02:48]}  Bb6 {[%clk 0:02:45]} 13. Ne2 {[%clk 0:02:46]}  Bd7 {[%clk 0:02:41]} 14. c4 {[%clk 0:02:44]}  Nh4 {[%clk 0:02:36]} 15. Nxh4 {[%clk 0:02:43]}  Bxf2+ {[%clk 0:02:32]} 16. Kd1 {[%clk 0:02:41]}  Qxh4 {[%clk 0:02:29]} 17. Rf1 {[%clk 0:02:38]}  Ba4+ {[%clk 0:02:27]} 18. Bc2 {[%clk 0:02:28]}  Bxc2+ {[%clk 0:02:26]} 19. Qxc2 {[%clk 0:02:29]}  O-O {[%clk 0:02:09]} 20. Nf4 {[%clk 0:02:20]}  Bd4 {[%clk 0:02:06]} 21. Ne2 {[%clk 0:02:12]}  Bxa1 {[%clk 0:02:03]} 0-1


[Site "https://www.chess.com"]